bitfinex/quotes_ETHUSD_20251122
["timestamp","ask_amount","ask_price","bid_price","bid_amount"]
[1763823263543,0.0048,2750.1,2750.0,0.90799264]
[1763823264050,0.0048,2750.1,2750.0,4.54435627]
[1763823264253,0.0048,2750.1,2750.0,0.81918481]
[1763823264460,0.0048,2750.1,2750.0,4.54435627]
[1763823265157,0.4933,2750.1,2750.0,0.001]
[1763823271496,0.1052,2749.8,2749.5,0.001]
[1763823271682,0.0011,2749.6,2749.5,0.001]
[1763823272076,0.4896,2749.6,2749.5,0.001]
[1763823272609,0.6126,2749.6,2749.5,0.001]
[1763823276011,0.1241,2749.6,2749.5,0.001]
[1763823277804,0.6009,2749.6,2749.5,0.001]
[1763823278998,0.0644,2749.8,2749.5,0.001]
[1763823279205,0.4597,2749.6,2749.5,0.001]
[1763823279586,0.7214,2749.6,2749.5,0.001]
[1763823281206,0.8444,2749.6,2749.5,0.001]
[1763823283611,0.4597,2749.6,2749.5,0.001]
[1763823283773,0.5827,2749.6,2749.5,0.001]
[1763823285308,0.4419,2749.9,2749.5,0.4928]
[1763823285608,0.57255684,2750.2,2749.5,0.9633]
[1763823285794,0.5998,2750.1,2749.5,0.4928]
[1763823287611,0.4768,2750.0,2749.5,0.4928]
[1763823288113,0.123,2750.1,2749.5,4.12979845]
[1763823288316,0.1802,2749.9,2749.5,0.77780873]
[1763823288510,0.1802,2749.9,2749.4,3.32529468]
[1763823288712,0.1802,2749.9,2749.4,7.43295187]
[1763823289021,0.1802,2749.9,2749.4,3.79579468]
[1763823289887,0.123,2749.9,2749.8,0.4918]
[1763823290109,0.123,2749.9,2749.5,0.4705]
[1763823290309,0.123,2749.9,2749.5,1.21379519]
[1763823290884,0.1874,2749.9,2749.4,3.32529468]
[1763823291306,0.1874,2749.9,2749.2,0.001]
[1763823291307,0.4768,2749.8,2749.3,3.63722955]
[1763823291813,0.4768,2749.8,2749.2,3.63839003]
[1763823291814,0.4768,2749.8,2749.2,0.001]
[1763823291978,4.18098516,2749.8,2749.2,0.001]
[1763823292178,0.2424,2749.3,2749.2,0.001]
[1763823292395,0.3654,2749.3,2749.2,0.001]
[1763823294014,0.90382426,2749.3,2749.2,0.001]
[1763823294315,1.28402426,2749.3,2749.2,0.001]
[1763823294828,1.68952826,2749.3,2749.2,0.001]
[1763823295037,1.68952826,2749.3,2749.1,0.001]
[1763823295038,0.90699264,2749.2,2749.1,0.001]
[1763823295321,0.1444,2749.0,2748.1,0.001]
[1763823295491,0.1854,2748.2,2748.1,0.001]
[1763823295677,0.3084,2748.2,2748.1,0.001]
[1763823295881,0.1802,2748.5,2748.1,0.001]
[1763823296109,0.2883,2748.2,2748.1,0.001]
[1763823297316,0.7651,2748.2,2748.1,0.001]
[1763823298523,0.2883,2748.2,2748.1,0.001]
[1763823299724,0.1802,2748.5,2748.1,0.4928]
[1763823299887,0.123,2748.2,2748.1,0.4928]
[1763823300288,0.1802,2749.0,2748.1,5.25136046]
[1763823300623,0.123,2748.9,2748.4,0.4918]
[1763823300999,0.5998,2748.9,2748.4,0.4918]
[1763823301197,0.4768,2748.9,2748.4,0.4918]
[1763823301400,0.123,2748.8,2748.5,0.4705]
[1763823301720,0.123,2748.8,2748.7,0.4918]
[1763823301898,0.1802,2749.4,2748.7,0.4918]
[1763823302103,0.123,2749.3,2748.8,4.1084511]
[1763823302304,0.123,2749.3,2748.8,0.46002511]
[1763823302632,0.2186,2748.9,2748.2,3.63874536]
[1763823302824,0.5998,2749.3,2748.3,0.4705]
[1763823303120,0.4768,2749.2,2748.3,0.4705]
[1763823304891,0.4768,2749.2,2748.4,3.63848057]
[1763823305092,0.4768,2749.2,2748.5,0.77475175]
[1763823305527,0.4768,2749.2,2748.2,3.63874536]
[1763823305739,0.4768,2749.2,2748.2,7.27749072]
[1763823305939,0.4768,2749.2,2748.2,3.63874536]
[1763823306248,0.2186,2748.3,2748.1,0.001]
[1763823306443,0.3416,2748.3,2748.1,0.001]
[1763823306744,0.5037,2748.2,2748.1,0.001]
[1763823306941,0.0047,2748.2,2748.1,0.001]
[1763823307345,0.123,2748.3,2748.1,0.001]
[1763823309751,0.1966,2748.2,2748.1,0.001]
[1763823310521,0.499,2749.0,2748.1,0.9495]
[1763823310714,0.123,2748.9,2748.2,0.4742]
[1763823310910,0.123,2748.9,2748.1,0.001]
[1763823311135,0.622,2748.9,2748.1,0.001]
[1763823311340,0.622,2748.9,2748.1,0.4753]
[1763823311856,0.499,2749.2,2748.1,0.4753]
[1763823312058,0.123,2748.8,2748.1,0.4753]
[1763823312743,0.622,2748.8,2748.1,0.001]
[1763823315445,0.123,2748.8,2748.1,0.88693165]
[1763823315839,0.622,2748.8,2748.1,0.41263165]
[1763823316160,0.622,2748.8,2748.1,0.001]
[1763823316361,0.622,2748.8,2748.1,0.4753]
[1763823316542,0.123,2748.8,2748.1,0.4753]
[1763823317485,0.123,2748.8,2748.1,4.11406032]
[1763823317627,0.123,2748.8,2748.1,4.11414099]
[1763823318773,0.123,2748.8,2748.1,0.001]
[1763823319076,0.499,2748.7,2748.1,0.001]
[1763823320352,0.9743,2748.7,2748.1,0.001]
[1763823320549,0.4753,2748.7,2748.1,0.001]
[1763823320853,0.123,2748.6,2748.2,0.4743]
[1763823323055,0.4743,2748.8,2748.5,0.4742]
[1763823323239,0.4743,2748.8,2748.1,0.41264422]
[1763823323240,0.123,2748.7,2748.1,0.001]
[1763823323681,0.622,2748.7,2748.1,0.001]
[1763823325679,0.123,2748.7,2748.1,0.88693045]
[1763823326057,0.123,2748.7,2748.2,0.4743]
[1763823326878,0.123,2748.7,2748.2,4.11303918]
[1763823327280,0.123,2748.7,2748.3,0.4743]
[1763823328883,0.002,2749.2,2748.6,0.4742]
[1763823329044,0.499,2749.0,2748.6,0.4742]
[1763823330385,0.123,2749.1,2748.9,0.4742]
[1763823331863,0.4753,2749.0,2748.6,0.4743]
[1763823332061,0.499,2749.0,2748.2,3.63873957]
[1763823332268,0.499,2749.0,2748.2,4.92959626]
[1763823332457,4.25336819,2749.0,2748.2,0.81655669]
[1763823332755,4.25336819,2749.0,2748.2,0.4743]
[1763823333381,4.25336819,2749.0,2748.2,4.11303673]
[1763823334751,0.499,2749.0,2748.2,4.11303673]
[1763823335800,0.499,2749.0,2748.1,0.001]
[1763823336374,0.499,2749.0,2748.2,0.4826]
[1763823336571,0.499,2749.0,2748.2,1.2588555]
[1763823336959,0.499,2749.0,2748.3,0.4826]
[1763823337290,0.499,2749.0,2748.2,0.7762555]
[1763823337489,0.499,2749.0,2748.1,0.001]
[1763823338056,0.499,2749.0,2748.2,0.4584]
[1763823340182,0.499,2749.0,2748.3,3.63861296]
[1763823340583,0.499,2749.0,2748.3,4.09701296]
[1763823341708,0.499,2749.0,2748.3,0.4584]
[1763823341903,0.501,2749.0,2748.3,0.4584]
[1763823342371,0.501,2749.0,2748.3,4.09698421]
[1763823342705,0.501,2749.0,2748.1,3.63986988]
[1763823342878,0.501,2749.0,2748.1,7.27874765]
[1763823343209,0.501,2749.0,2748.1,0.81977403]
[1763823343427,0.501,2749.0,2748.1,0.001]
[1763823344007,0.501,2749.0,2748.1,3.63987466]
[1763823344231,0.501,2749.0,2748.1,0.001]
[1763823344232,0.1966,2748.2,2748.1,0.001]
[1763823344431,0.7759,2748.2,2748.1,0.001]
[1763823347754,0.3196,2748.2,2748.1,0.001]
[1763823348427,0.123,2748.2,2748.1,0.001]
[1763823349266,0.3619,2748.2,2748.1,0.001]
[1763823350829,0.816,2748.2,2748.1,0.001]
[1763823354669,0.002,2749.0,2748.1,0.4808]
[1763823354825,0.14584195,2748.4,2748.1,0.4808]
[1763823355162,0.002,2749.0,2748.3,0.4798]
[1763823355360,0.123,2748.9,2748.3,0.4798]
[1763823355751,0.5793,2748.9,2748.3,0.4798]
[1763823357649,0.4563,2748.8,2748.1,0.001]
[1763823357849,0.4563,2748.8,2748.1,4.09825051]
[1763823358049,0.123,2748.9,2748.1,4.09825051]
[1763823358050,0.123,2748.9,2748.1,4.87217645]
[1763823358253,0.123,2748.9,2748.2,0.4584]
[1763823360065,0.2389,2748.3,2748.1,0.001]
[1763823360366,0.3619,2748.3,2748.1,0.001]
[1763823360665,0.0045,2748.2,2748.1,0.001]
[1763823361029,0.4608,2748.2,2748.1,0.001]
[1763823361453,1.06738969,2748.2,2748.1,0.001]
[1763823361655,0.61108969,2748.2,2748.1,0.001]
[1763823361856,0.0045,2748.2,2748.1,0.001]
[1763823362098,0.4608,2748.2,2748.1,0.001]
[1763823362870,1.02714498,2748.6,2748.1,0.001]
[1763823363073,0.4742,2748.2,2748.1,0.001]
[1763823363537,0.6953,2748.2,2748.1,0.001]
[1763823363735,1.16718498,2748.2,2748.1,0.001]
[1763823365061,1.31303916,2748.2,2748.1,0.001]
[1763823365260,0.62005418,2748.2,2748.1,0.001]
[1763823365570,0.123,2748.2,2748.1,0.9392]
[1763823366180,0.5858,2748.2,2748.1,0.001]
[1763823367555,0.8182,2748.2,2748.1,0.001]
[1763823368562,0.5858,2748.2,2748.1,0.001]
[1763823369358,0.321,2748.2,2748.1,0.001]
[1763823369617,0.8156,2748.2,2748.1,0.001]
[1763823370990,0.321,2748.2,2748.1,0.001]
[1763823371876,0.4976,2748.6,2748.1,0.4917]
[1763823372181,0.14583451,2748.4,2748.1,0.4917]
[1763823373161,0.123,2748.5,2748.3,0.4907]
[1763823373570,0.4628,2748.2,2748.1,0.001]
[1763823374090,0.6187,2748.5,2748.1,0.9864]
[1763823374694,0.6187,2748.5,2748.1,0.001]
[1763823374885,0.198,2748.2,2748.1,0.001]
[1763823375081,0.6187,2748.5,2748.1,0.001]
[1763823375286,0.6187,2748.5,2748.1,0.4917]
[1763823375505,0.002,2748.9,2748.4,0.4907]
[1763823375800,0.6187,2748.8,2748.4,0.4907]
[1763823376486,0.6187,2748.8,2748.1,0.4957]
[1763823376487,0.4628,2748.5,2748.1,0.001]
[1763823376662,0.0023,2748.2,2748.1,0.001]
[1763823379498,0.123,2748.4,2748.1,0.4917]
[1763823382071,0.198,2748.2,2748.1,0.001]
[1763823382307,0.6176,2748.4,2748.1,0.001]
[1763823382509,0.123,2748.4,2748.1,0.001]
[1763823383564,0.4628,2748.2,2748.1,0.001]
[1763823384396,0.6952,2748.2,2748.1,0.001]
[1763823385611,0.14584301,2748.4,2748.1,0.001]
[1763823385772,0.123,2748.2,2748.1,0.001]
[1763823385967,0.321,2748.2,2748.1,0.001]
[1763823387393,0.8156,2748.2,2748.1,0.001]
[1763823387908,0.321,2748.2,2748.1,0.001]
[1763823388108,0.123,2748.2,2748.1,0.4917]
[1763823388266,0.123,2748.2,2748.1,0.9864]
[1763823388894,0.34136845,2748.5,2748.1,0.9864]
[1763823389085,0.123,2748.4,2748.1,0.9864]
[1763823389309,0.34136845,2748.5,2748.1,0.9864]
[1763823389517,0.123,2748.4,2748.3,0.4907]
[1763823390221,0.123,2748.4,2748.1,0.4957]
[1763823390522,0.123,2748.4,2748.3,0.4907]
[1763823391032,0.123,2748.4,2748.1,0.001]
[1763823391210,0.123,2748.4,2748.3,0.4907]
[1763823391728,0.123,2748.4,2748.3,0.9854]
[1763823392686,0.123,2748.4,2748.3,1.44791449]
[1763823395231,0.123,2748.4,2748.3,0.9854]
[1763823396633,0.3361,2748.4,2748.1,0.001]
[1763823397127,0.4515,2748.2,2748.1,0.001]
[1763823399432,0.3666,2748.4,2748.1,0.001]
[1763823399602,0.123,2748.4,2748.3,0.4735]
[1763823400933,0.48692382,2748.7,2748.3,0.9442]
[1763823401238,0.123,2748.4,2748.3,0.9442]
[1763823404129,0.123,2748.4,2748.3,1.40260308]
[1763823405666,0.123,2748.4,2748.3,0.9442]
[1763823406927,0.123,2748.4,2748.3,0.4735]
[1763823407348,0.123,2748.4,2748.1,0.001]
[1763823407528,0.123,2748.4,2748.3,0.4735]
[1763823408058,0.123,2748.4,2748.3,0.9442]
[1763823409226,0.123,2748.4,2748.3,1.40260733]
[1763823409423,0.123,2748.4,2748.3,5.04122029]
[1763823409624,0.123,2748.4,2748.3,0.45840733]
[1763823409826,0.123,2748.4,2748.3,0.4735]
[1763823410241,0.123,2748.4,2748.3,0.9442]
[1763823411267,0.123,2748.4,2748.3,0.9452]
[1763823411441,0.123,2748.4,2748.3,0.4745]
[1763823411645,0.123,2748.4,2748.3,0.9452]
[1763823413870,0.002,2748.9,2748.3,8.68091647]
[1763823414030,0.123,2748.7,2748.4,0.4707]
[1763823414445,0.123,2748.7,2748.6,0.4735]
[1763823414848,0.5745,2748.7,2748.3,0.001]
[1763823415048,0.447,2748.4,2748.3,0.001]
[1763823415260,0.86736635,2748.4,2748.3,0.001]
[1763823415459,1.11536635,2748.4,2748.3,0.001]
[1763823416267,0.695,2748.4,2748.3,0.001]
[1763823419200,0.447,2748.4,2748.3,0.001]
[1763823419370,5.76416017,2748.4,2748.3,0.001]
[1763823419560,8.61795079,2748.4,2748.3,0.001]
[1763823420216,12.44163932,2748.4,2748.3,0.001]
[1763823420511,3.66854,2748.2,2748.1,0.001]
[1763823420658,5.53590423,2748.2,2748.1,0.001]
[1763823420864,8.47375923,2748.2,2748.1,0.001]
[1763823421066,0.2114,2748.1,2747.7,0.001]
[1763823421290,0.2114,2748.1,2746.9,0.001]
[1763823421291,14.8541,2747.8,2746.9,0.001]
[1763823421491,5.27836017,2747.2,2746.9,0.001]
[1763823421701,5.74260423,2747.2,2746.9,0.001]
[1763823421881,6.36712758,2747.2,2746.9,0.001]
[1763823422379,1.05291599,2747.2,2746.9,0.001]
[1763823422570,0.90699264,2747.2,2747.1,0.6637]
[1763823422779,0.14588929,2747.6,2747.1,1.1344]
[1763823422978,0.123,2747.5,2747.1,1.1344]
[1763823423183,0.123,2747.5,2747.1,0.4745]
[1763823423379,0.4816,2747.4,2747.1,0.001]
[1763823423594,0.123,2747.5,2747.1,0.001]
[1763823423765,0.6046,2747.5,2747.1,0.001]
[1763823424267,0.4816,2747.4,2747.1,0.001]
[1763823425204,0.123,2747.5,2747.1,0.001]
[1763823425506,0.9632,2747.8,2747.2,0.4707]
[1763823425795,0.123,2747.7,2747.4,0.4735]
[1763823425963,0.123,2747.6,2747.4,0.4735]
[1763823426389,0.2211,2747.5,2747.1,0.001]
[1763823426592,0.5898,2747.6,2747.1,0.001]
[1763823426795,0.4693,2747.5,2747.1,0.001]
[1763823428701,0.2211,2747.2,2747.1,0.001]
[1763823429629,0.4693,2747.5,2747.1,0.001]
[1763823429771,0.4693,2747.8,2747.1,0.1958]
[1763823430107,0.123,2747.7,2747.1,0.6868]
[1763823430325,0.1918,2747.9,2747.1,0.6868]
[1763823430472,0.123,2747.8,2747.2,0.491]
[1763823430995,0.123,2747.8,2747.7,0.4855]
[1763823432582,0.123,2747.8,2747.7,0.9765]
[1763823432820,0.123,2747.8,2747.2,0.491]
[1763823433116,0.123,2747.8,2747.3,0.4326891]
[1763823433627,0.123,2747.8,2747.4,0.491]
[1763823435224,0.123,2747.8,2747.2,0.491]
[1763823437738,0.4693,2747.7,2747.1,0.001]
[1763823438622,0.4693,2747.7,2747.1,0.1958]
[1763823439311,0.4693,2747.7,2747.1,0.001]
[1763823440134,0.2309,2747.2,2747.1,0.001]
[1763823440338,0.3539,2747.2,2747.1,0.001]
[1763823447742,0.123,2747.2,2747.1,0.4865]
[1763823448305,0.3539,2747.2,2747.1,0.001]
[1763823448957,0.8208,2747.2,2747.1,0.001]
[1763823449256,1.36957273,2747.2,2747.1,0.001]
[1763823449440,0.90267273,2747.2,2747.1,0.001]
[1763823449641,0.67177273,2747.2,2747.1,0.4865]
[1763823450082,0.123,2747.2,2747.1,0.4865]
[1763823450858,0.002,2747.5,2747.1,1.1723]
[1763823451159,0.002,2747.5,2747.4,0.4855]
[1763823451366,0.125,2747.5,2747.4,0.4855]
[1763823451525,0.125,2747.5,2747.4,0.9765]
[1763823451526,0.002,2747.5,2747.4,0.9765]
[1763823451857,0.125,2747.5,2747.4,0.9765]
[1763823454362,0.125,2747.5,2747.4,0.4855]
[1763823454521,0.125,2747.5,2747.4,0.9765]
[1763823457671,0.075,2747.5,2747.4,0.9765]
[1763823459428,0.075,2747.5,2747.4,0.4855]
[1763823460628,0.075,2747.5,2747.1,0.6715]
[1763823460629,0.2829,2747.5,2747.1,0.6715]
[1763823460836,0.2829,2747.5,2747.1,0.001]
[1763823461040,0.7727,2747.5,2747.1,0.001]
[1763823463266,0.2829,2747.5,2747.1,0.6617]
[1763823463646,0.2829,2747.5,2747.4,0.001]
[1763823463971,0.2849,2747.5,2747.4,0.001]
[1763823464763,0.077,2747.5,2747.4,0.4766]
[1763823465475,0.2849,2747.5,2747.4,0.001]
[1763823467579,0.077,2747.5,2747.4,0.4766]
[1763823467939,0.077,2747.5,2747.4,0.9523]
[1763823467940,0.002,2747.5,2747.4,0.9523]
[1763823468155,0.125,2747.5,2747.4,0.9523]
[1763823468566,0.002,2747.5,2747.4,0.9523]
[1763823470057,0.002,2747.5,2747.4,4.5921049]
[1763823470260,0.002,2747.5,2747.4,4.62850294]
[1763823471193,0.002,2747.5,2747.4,4.5921049]
[1763823471689,0.002,2747.5,2747.4,5.45170943]
[1763823471851,0.002,2747.5,2747.4,5.41531139]
[1763823479673,0.002,2747.5,2747.4,9.4406882]
[1763823480488,0.002,2747.5,2747.4,9.5406882]
[1763823481101,0.002,2747.5,2747.4,10.75318484]
[1763823481303,0.002,2747.8,2747.5,0.405504]
[1763823481488,0.002,2747.8,2747.7,8.64588831]
[1763823481712,0.002,2747.8,2747.7,9.55288095]
[1763823482016,0.002,2747.8,2747.7,10.02858095]
[1763823484119,0.002,2748.1,2748.0,0.505504]
[1763823484414,0.002,2748.1,2748.0,6.56162311]
[1763823484585,0.002,2748.1,2748.0,7.03732311]
[1763823484913,0.002,2748.9,2748.1,0.405504]
[1763823485094,0.002,2748.9,2748.8,0.4756]
[1763823485510,0.002,2748.9,2748.8,0.9513]
[1763823485707,0.002,2748.9,2748.8,1.44896768]
[1763823486081,0.002,2748.9,2748.8,4.5892511]
[1763823490322,0.002,2748.9,2748.8,6.86144269]
[1763823491022,0.002,2748.9,2748.8,6.8978222]
[1763823491454,0.002,2748.9,2748.8,6.23293869]
[1763823491723,0.1128,2748.9,2748.4,3.63848057]
[1763823492029,0.002,2748.9,2748.8,0.4991]
[1763823492721,0.002,2748.9,2748.8,0.978]
[1763823492925,0.002,2748.9,2748.8,4.6159511]
[1763823493124,0.002,2748.9,2748.8,5.4413536]
[1763823495031,0.002,2748.9,2748.8,5.47773311]
[1763823495235,0.002,2748.9,2748.8,5.4413536]
[1763823496341,0.002,2748.9,2748.8,4.9624536]
[1763823496843,0.002,2748.9,2748.8,5.4413536]
[1763823498040,0.002,2748.9,2748.8,5.47773311]
[1763823498943,0.002,2748.9,2748.8,5.8468576]
[1763823499144,0.002,2748.9,2748.8,6.85385024]
[1763823501847,0.002,2748.9,2748.8,16.00551412]
[1763823502662,0.002,2748.9,2748.8,16.15123546]
[1763823503315,0.002,2748.9,2748.8,6.42067158]
[1763823503632,0.002,2748.9,2748.8,5.86944624]
[1763823503836,0.002,2748.9,2748.8,6.34834624]
[1763823504239,0.002,2748.9,2748.8,6.97685024]
[1763823504420,0.002,2748.9,2748.8,10.81585024]
[1763823505851,0.002,2748.9,2748.8,4.9624536]
[1763823506067,0.002,2748.9,2748.8,3.6379511]
[1763823506217,0.1128,2748.9,2748.8,3.6379511]
[1763823507662,0.002,2748.9,2748.8,3.6379511]
[1763823507840,0.002,2748.9,2748.6,7.27643162]
[1763823508034,0.7532,2748.9,2748.6,7.27643162]
[1763823508350,0.1904,2748.9,2748.6,3.63821581]
[1763823508548,0.1073,2748.7,2748.6,3.63821581]
[1763823509854,0.5627,2748.7,2748.4,3.63848057]
[1763823510017,0.1073,2748.7,2748.4,7.73150846]
[1763823510435,0.5627,2748.7,2748.4,7.73150846]
[1763823511048,0.1073,2748.7,2748.4,7.73150846]
[1763823512427,0.1904,2748.9,2748.4,7.73150846]
[1763823512626,0.1904,2748.9,2748.6,0.4991]
[1763823514438,0.1904,2748.9,2748.7,7.2761669]
[1763823515066,0.002,2748.9,2748.7,7.2761669]
[1763823515925,0.002,2748.9,2748.8,0.4647]
[1763823516331,0.002,2748.9,2748.8,0.9431]
[1763823516556,0.463,2748.9,2748.8,3.6379511]
[1763823516753,0.7566,2748.9,2748.7,3.63801845]
[1763823516968,0.4723,2748.8,2748.7,3.63801845]
[1763823517260,0.002,2748.9,2748.8,0.4907]
[1763823517679,0.4596,2748.9,2748.7,8.00372408]
[1763823517832,0.002,2748.9,2748.8,0.4907]
[1763823518028,0.002,2748.9,2748.8,0.944]
[1763823518264,0.002,2748.9,2748.8,1.54317045]
[1763823518966,0.002,2748.9,2748.8,5.18112155]
[1763823519335,0.002,2748.9,2748.8,4.72782155]
[1763823520654,0.7531,2748.9,2748.4,4.02155967]
[1763823520973,0.0046,2748.8,2748.5,3.6382632]
[1763823521167,0.0046,2748.8,2748.5,7.27661138]
[1763823522052,0.0979,2748.6,2748.5,3.6382632]
[1763823522966,0.002,2748.9,2748.5,11.85895956]
[1763823523165,0.002,2748.9,2748.8,4.24444467]
[1763823523370,0.002,2748.9,2748.8,4.28082418]
[1763823525075,0.002,2748.9,2748.8,7.91877528]
[1763823525376,0.0921,2748.9,2748.8,7.39169577]
[1763823525548,0.002,2748.9,2748.8,7.39169577]
[1763823525751,0.0921,2748.9,2748.8,3.6379511]
[1763823525950,0.7558,2748.9,2748.8,3.6379511]
[1763823526150,0.2827,2748.9,2748.8,3.6379511]
[1763823526581,0.7529,2748.9,2748.8,3.6379511]
[1763823526978,0.2827,2748.9,2748.8,3.6379511]
[1763823527194,0.2827,2748.9,2748.7,3.63808219]
[1763823527358,0.0047,2748.8,2748.7,3.63808219]
[1763823528679,0.4778,2748.8,2748.7,3.63808219]
[1763823528887,0.002,2748.9,2748.7,7.76686564]
[1763823529950,0.002,2748.9,2748.8,0.4907]
[1763823530151,0.002,2748.9,2748.8,4.24444467]
[1763823530349,0.4596,2748.9,2748.8,3.75374467]
[1763823530584,0.002,2748.9,2748.8,4.24444467]
[1763823531399,0.002,2748.9,2748.8,6.01024131]
[1763823531572,0.002,2748.9,2748.8,10.11797539]
[1763823531775,0.002,2748.9,2748.8,17.50967116]
[1763823532095,0.002,2748.9,2748.8,13.26516716]
[1763823532311,0.002,2748.9,2748.8,13.36516716]
[1763823533083,0.002,2748.9,2748.8,9.61142249]
[1763823533817,0.002,2748.9,2748.8,9.15812249]
[1763823533960,0.002,2748.9,2748.8,9.61142249]
[1763823534468,0.002,2748.9,2748.8,9.51142249]
[1763823534690,0.002,2748.9,2748.8,9.61142249]
[1763823534913,0.002,2748.9,2748.8,5.85767782]
[1763823535093,0.002,2748.9,2748.8,5.75767782]
[1763823535289,0.0921,2748.9,2748.8,3.6379511]
[1763823535804,0.002,2748.9,2748.8,3.6379511]
[1763823536103,0.002,2748.9,2748.7,7.27616564]
[1763823536504,0.002,2748.9,2748.8,1.08037951]
[1763823536798,0.002,2748.9,2748.8,1.044]
[1763823536989,0.002,2748.9,2748.8,1.08037951]
[1763823537300,0.002,2748.9,2748.8,0.98037951]
[1763823537462,0.002,2748.9,2748.8,1.08037951]
[1763823537892,0.002,2748.9,2748.8,0.98037951]
[1763823538093,0.002,2748.9,2748.8,5.89444774]
[1763823538296,0.002,2748.9,2748.8,9.83344774]
[1763823540309,0.002,2748.9,2748.8,5.89444774]
[1763823540517,0.002,2748.9,2748.8,6.04018023]
[1763823540719,0.002,2748.9,2748.8,6.26318023]
[1763823540879,0.002,2748.9,2748.8,6.16318023]
[1763823541078,0.002,2748.9,2748.8,5.73467623]
[1763823541303,0.002,2748.9,2748.8,5.61194374]
[1763823541474,0.002,2748.9,2748.8,5.48894374]
[1763823541681,0.002,2748.9,2748.8,5.71194374]
[1763823545406,0.7529,2748.9,2748.3,3.63861296]
[1763823545705,0.0893,2748.4,2748.3,4.5456056]
[1763823545908,0.4701,2748.8,2748.4,0.90699264]
[1763823546344,0.0931,2748.5,2748.4,0.90699264]
[1763823546641,0.0931,2748.5,2748.4,4.54547321]
[1763823547265,0.0931,2748.5,2748.4,0.90699264]
[1763823547409,0.5594,2748.5,2748.0,0.0231]
[1763823547755,0.0047,2748.1,2748.0,3.66209714]
[1763823548245,0.0047,2748.1,2748.0,0.0231]
[1763823548452,0.0047,2748.1,2748.0,3.66211018]
[1763823550447,0.1936,2748.9,2748.0,8.97914474]
[1763823550623,0.4951,2748.7,2748.0,7.77022036]
[1763823552649,0.1936,2748.9,2748.2,7.27749072]
[1763823552809,0.1936,2748.9,2748.3,0.03638612]
[1763823553528,0.1936,2748.9,2748.3,0.5787]
[1763823553949,0.1936,2748.9,2748.3,0.4787]
[1763823554146,0.002,2748.9,2748.8,0.4691]
[1763823554361,0.002,2748.9,2748.4,0.1]
[1763823554362,0.0741,2748.9,2748.4,0.1]
[1763823554681,0.0741,2748.9,2748.4,0.5787]
[1763823554863,0.002,2748.9,2748.8,0.4691]
[1763823555032,0.002,2748.9,2748.8,0.50547951]
[1763823555747,0.0741,2748.9,2748.8,0.03637951]
[1763823555941,0.002,2748.9,2748.8,0.50547951]
[1763823556256,0.002,2748.9,2748.8,0.98417951]
[1763823557939,0.002,2748.9,2748.8,4.5857511]
[1763823558139,0.002,2748.9,2748.8,4.62213061]
[1763823558437,0.002,2748.9,2748.8,4.5857511]
[1763823558638,0.002,2748.9,2748.8,5.56681298]
[1763823558951,0.002,2748.9,2748.8,6.43742611]
[1763823560875,0.002,2748.9,2748.8,10.18971153]
[1763823561174,0.002,2748.9,2748.8,10.08971153]
[1763823561546,0.002,2748.9,2748.8,10.18971153]
[1763823562071,0.002,2748.9,2748.8,9.71101153]
[1763823562277,0.002,2748.9,2748.8,9.61101153]
[1763823562782,0.002,2748.9,2748.8,9.71101153]
[1763823563884,0.0741,2748.9,2748.8,9.14191153]
[1763823564452,0.002,2748.9,2748.8,9.61101153]
[1763823564653,0.002,2748.9,2748.8,10.18971153]
[1763823568176,0.002,2748.9,2748.8,9.61101153]
[1763823568576,0.0741,2748.9,2748.8,9.14191153]
[1763823569890,0.002,2748.9,2748.8,9.14191153]
[1763823570305,0.0783,2748.9,2748.8,9.14191153]
[1763823571516,0.7528,2748.9,2748.8,9.14191153]
[1763823571716,0.2661,2748.9,2748.8,3.6379511]
[1763823572010,0.7528,2748.9,2748.8,3.6379511]
[1763823572211,0.7528,2748.9,2748.6,3.75228542]
[1763823572212,0.7528,2748.9,2748.6,7.39046861]
[1763823572413,0.1898,2748.9,2748.7,0.03638083]
[1763823572709,0.0721,2748.8,2748.6,11.02868442]
[1763823572911,0.4909,2748.8,2748.6,11.02868442]
[1763823573101,0.0763,2748.7,2748.6,7.39046861]
[1763823574624,0.563,2748.7,2748.6,3.75228542]
[1763823574776,0.563,2748.7,2748.5,3.63829962]
[1763823574981,0.0049,2748.6,2748.5,3.63829962]
[1763823576816,0.4897,2748.6,2748.5,3.63829962]
[1763823578591,0.4558,2748.6,2748.5,3.63829962]
[1763823579318,0.3009,2748.9,2748.5,4.13659962]
[1763823579513,0.3009,2748.9,2748.6,3.75228542]
[1763823579714,0.4523,2748.7,2748.6,3.75228542]
[1763823580489,0.1898,2748.9,2748.6,4.25058542]
[1763823580709,0.002,2748.9,2748.7,3.63808345]
[1763823580924,0.002,2748.9,2748.7,7.2761669]
[1763823581126,0.002,2748.9,2748.8,0.4983]
[1763823582109,0.086,2748.9,2748.7,8.06503379]
[1763823582633,0.002,2748.9,2748.7,8.06503379]